bitfinex/quotes_BTCUSD_20240602
["timestamp","ask_amount","ask_price","bid_price","bid_amount"]
[1717299731357,0.00829852,67810.0,67809.0,2.16011995]
[1717299731684,0.00829852,67810.0,67809.0,2.14908563]
[1717299733300,0.00829852,67810.0,67809.0,2.07348563]
[1717299733734,0.00829852,67810.0,67809.0,1.71855269]
[1717299733916,0.00829852,67810.0,67809.0,2.10106964]
[1717299743039,0.00829852,67810.0,67809.0,2.10106925]
[1717299748482,0.00829852,67810.0,67809.0,2.10106759]
[1717299751908,0.00829852,67810.0,67809.0,1.64204724]
[1717299752134,0.00829852,67810.0,67809.0,1.31518943]
[1717299752345,0.00829852,67810.0,67809.0,2.10106767]
[1717299755421,0.00829852,67810.0,67809.0,2.02456427]
[1717299755619,0.00829852,67810.0,67809.0,2.10106767]
[1717299762804,0.00829852,67810.0,67809.0,2.37749559]
[1717299765816,0.00829852,67810.0,67809.0,2.30099219]
[1717299766056,0.00829852,67810.0,67809.0,2.37749559]
[1717299773791,0.00829852,67810.0,67809.0,2.40175046]
[1717299777864,0.00829852,67810.0,67809.0,2.53413775]
[1717299782270,0.24819852,67810.0,67809.0,2.44703775]
[1717299782385,0.24819852,67810.0,67809.0,2.05685656]
[1717299782588,0.24819852,67810.0,67809.0,1.75617382]
[1717299782797,0.24819852,67810.0,67809.0,1.54873824]
[1717299783353,0.24819852,67810.0,67809.0,1.48966555]
[1717299783576,0.25319852,67810.0,67809.0,1.48966555]
[1717299783721,0.25319852,67810.0,67809.0,1.32556555]
[1717299783921,0.24819852,67810.0,67809.0,1.3896765]
[1717299784152,0.24819852,67810.0,67809.0,1.4266765]
[1717299784153,0.25319852,67810.0,67809.0,1.4266765]
[1717299787713,0.25319852,67810.0,67809.0,1.42667922]
[1717299788131,0.25319852,67810.0,67809.0,1.36257991]
[1717299788332,0.25319852,67810.0,67809.0,1.42667991]
[1717299789641,0.25319852,67810.0,67809.0,1.03570886]
[1717299789828,0.25319852,67810.0,67809.0,1.42667991]
[1717299790030,0.25319852,67810.0,67809.0,1.52187791]
[1717299790228,0.25319852,67810.0,67809.0,1.42667991]
[1717299790466,0.25319852,67810.0,67809.0,1.58597791]
[1717299790594,0.25319852,67810.0,67809.0,1.52187791]
[1717299790796,0.25319852,67810.0,67809.0,1.12065629]
[1717299791643,0.25319852,67810.0,67809.0,1.05655629]
[1717299791846,0.25319852,67810.0,67809.0,1.12065629]
[1717299792257,0.25319852,67810.0,67809.0,1.23099006]
[1717299793037,0.25319852,67810.0,67809.0,1.22829602]
[1717299794180,0.25319852,67810.0,67809.0,1.16419602]
[1717299794380,0.25319852,67810.0,67809.0,0.97735575]
[1717299794583,0.25319852,67810.0,67809.0,0.89324294]
[1717299795203,0.25319852,67810.0,67809.0,0.56637189]
[1717299796229,0.25319852,67810.0,67809.0,0.50017191]
[1717299797003,0.25319852,67810.0,67809.0,0.46317191]
[1717299797795,0.25319852,67810.0,67809.0,0.50017191]
[1717299801261,0.25319852,67810.0,67809.0,0.54427208]
[1717299801671,0.25319852,67810.0,67809.0,0.50017191]
[1717299802292,0.25319852,67810.0,67809.0,0.54427091]
[1717299802537,0.25319852,67810.0,67809.0,0.50017191]
[1717299802674,0.25319852,67810.0,67809.0,0.54427282]
[1717299807034,0.25319852,67810.0,67809.0,0.50017191]
[1717299807257,0.25319852,67810.0,67809.0,0.5442711]
[1717299809220,0.25319852,67810.0,67809.0,0.50017191]
[1717299812176,0.25319852,67810.0,67809.0,0.54427228]
[1717299812819,0.25319852,67810.0,67809.0,0.50017191]
[1717299813820,0.25319852,67810.0,67809.0,0.54427228]
[1717299814025,0.25319852,67810.0,67809.0,0.50017191]
[1717299814193,0.25319852,67810.0,67809.0,0.65059473]
[1717299817312,0.00829852,67810.0,67809.0,0.65059473]
[1717299817730,0.00829852,67810.0,67809.0,1.04363483]
[1717299820018,0.00829852,67810.0,67809.0,1.12203483]
[1717299821174,0.00829852,67810.0,67809.0,1.34175117]
[1717299821406,0.00829852,67810.0,67809.0,1.53015117]
[1717299821825,0.00829852,67810.0,67809.0,1.61835192]
[1717299822026,0.00829852,67810.0,67809.0,1.58135192]
[1717299822451,0.00829852,67810.0,67809.0,1.61835192]
[1717299823160,0.00829852,67810.0,67809.0,1.58135192]
[1717299823309,0.00829852,67810.0,67809.0,1.61835192]
[1717299823934,0.00829852,67810.0,67809.0,1.58135192]
[1717299824739,0.00829852,67810.0,67809.0,1.61835192]
[1717299825076,0.00829852,67810.0,67809.0,1.68245192]
[1717299825315,0.00829852,67810.0,67809.0,1.26736163]
[1717299825486,0.00829852,67810.0,67809.0,1.59424292]
[1717299826352,0.00829852,67810.0,67809.0,1.70453381]
[1717299833453,0.00829852,67810.0,67809.0,1.59424292]
[1717299838489,0.00829852,67810.0,67809.0,1.53014292]
[1717299838690,0.00829852,67810.0,67809.0,1.59424292]
[1717299839341,0.00829852,67810.0,67809.0,1.53014292]
[1717299839849,0.00829852,67810.0,67809.0,1.59424292]
[1717299840062,0.00829852,67810.0,67809.0,1.62118756]
[1717299842936,0.00829852,67810.0,67809.0,1.55708756]
[1717299843135,0.00829852,67810.0,67809.0,1.86312706]
[1717299843339,0.00829852,67810.0,67809.0,1.62118756]
[1717299845367,0.00829852,67810.0,67809.0,1.92722771]
[1717299845817,0.00829852,67810.0,67809.0,1.62118756]
[1717299847253,0.00829852,67810.0,67809.0,1.92722748]
[1717299848070,0.00829852,67810.0,67809.0,1.97347551]
[1717299849929,0.00829852,67810.0,67809.0,1.64659422]
[1717299850136,0.00829852,67810.0,67809.0,1.9465251]
[1717299853753,0.00829852,67810.0,67809.0,1.8824251]
[1717299853968,0.00829852,67810.0,67809.0,1.9465251]
[1717299861934,0.00829852,67810.0,67809.0,1.94652508]
[1717299862160,0.00829852,67810.0,67809.0,1.70272508]
[1717299864412,0.24089852,67810.0,67809.0,1.51562508]
[1717299864640,0.24089852,67810.0,67809.0,1.20958516]
[1717299865035,0.24089852,67810.0,67809.0,0.94306252]
[1717299865447,0.24089852,67810.0,67809.0,0.98006252]
[1717299865649,0.24089852,67810.0,67809.0,0.94306252]
[1717299866133,0.24089852,67810.0,67809.0,0.98006252]
[1717299868599,0.24089852,67810.0,67809.0,1.04416252]
[1717299870017,0.23589852,67810.0,67809.0,1.04416252]
[1717299873229,0.24089852,67810.0,67809.0,1.04416252]
[1717299875029,0.23589852,67810.0,67809.0,1.04416252]
[1717299875461,0.24089852,67810.0,67809.0,1.04416252]
[1717299877714,0.23589852,67810.0,67809.0,1.04416252]
[1717299878143,0.23589852,67810.0,67809.0,1.04416663]
[1717299879081,0.23589852,67810.0,67809.0,0.89115653]
[1717299879262,0.23589852,67810.0,67809.0,1.04417589]
[1717299881552,0.00829852,67810.0,67809.0,1.04417589]
[1717299884596,0.01329852,67810.0,67809.0,1.04417589]
[1717299884797,0.00829852,67810.0,67809.0,1.04417589]
[1717299886864,0.00829852,67810.0,67809.0,0.97017589]
[1717299887228,0.00929852,67810.0,67809.0,1.04417589]
[1717299899283,0.00929852,67810.0,67809.0,1.04417577]
[1717299899823,0.00929852,67810.0,67809.0,1.04417578]
[1717299901523,0.01429852,67810.0,67809.0,1.04417578]
[1717299902920,0.01429852,67810.0,67809.0,0.98007578]
[1717299903115,0.01429852,67810.0,67809.0,1.04417578]
[1717299904292,0.01429852,67810.0,67809.0,0.71729123]
[1717299904455,0.01429852,67810.0,67809.0,1.04417578]
[1717299904673,0.00929852,67810.0,67809.0,1.04417578]
[1717299905048,0.01429852,67810.0,67809.0,1.04417578]
[1717299906653,0.01429852,67810.0,67809.0,0.98007578]
[1717299906857,0.01429852,67810.0,67809.0,1.04417578]
[1717299909677,0.24849852,67810.0,67809.0,1.04417578]
[1717299911495,0.24849852,67810.0,67809.0,0.83260278]
[1717299911894,0.25660267,67810.0,67809.0,0.83260278]
[1717299912334,0.25660267,67810.0,67809.0,1.09056323]
[1717299912539,0.24849852,67810.0,67809.0,1.09056323]
[1717299913104,0.24849852,67810.0,67809.0,0.98007578]
[1717299914468,0.24849852,67810.0,67809.0,0.94307578]
[1717299914687,0.24749852,67810.0,67809.0,0.90607578]
[1717299914886,0.24949852,67810.0,67809.0,0.98007578]
[1717299915210,0.24949852,67810.0,67809.0,0.94307578]
[1717299915797,0.25049852,67810.0,67809.0,0.50017191]
[1717299915997,0.25859982,67810.0,67809.0,0.82706837]
[1717299920480,0.25859982,67810.0,67809.0,0.91542959]
[1717299922229,0.25859982,67810.0,67809.0,0.97952959]
[1717299922447,0.25049852,67810.0,67809.0,0.97952959]
[1717299931423,0.25049852,67810.0,67809.0,0.9795128]
[1717299937114,0.09479852,67810.0,67809.0,0.9795128]
[1717299940915,0.09479852,67810.0,67809.0,0.89116833]
[1717299945761,0.09479852,67810.0,67809.0,0.56427191]
[1717299946091,0.09479852,67810.0,67809.0,0.89116693]
[1717299946092,0.10290181,67810.0,67809.0,0.89116693]
[1717299946440,0.09479852,67810.0,67809.0,0.89116693]
[1717299948139,0.09479852,67810.0,67809.0,1.00165509]
[1717299949030,0.01129852,67810.0,67809.0,1.00165509]
[1717299949232,0.01629852,67810.0,67809.0,0.93755509]
[1717299949475,0.01629852,67810.0,67809.0,1.00165509]
[1717299950485,0.01129852,67810.0,67809.0,1.00165509]
[1717299950733,0.01629852,67810.0,67809.0,1.00165509]
[1717299951189,0.01129852,67810.0,67809.0,1.00165509]
[1717299954056,0.01629852,67810.0,67809.0,1.00165509]
[1717299954260,0.01129852,67810.0,67809.0,1.00167248]
[1717299954465,0.01129852,67810.0,67809.0,1.23487248]
[1717299954667,0.01129852,67810.0,67809.0,1.12436693]
[1717299955083,0.01129852,67810.0,67809.0,1.06026693]
[1717299955285,0.01129852,67810.0,67809.0,1.12436693]
[1717299955648,0.01129852,67810.0,67809.0,1.06026693]
[1717299955852,0.01129852,67810.0,67809.0,1.12436693]
[1717299960343,0.01129852,67810.0,67809.0,1.06026693]
[1717299960569,0.01629852,67810.0,67809.0,1.12436693]
[1717299961222,0.01129852,67810.0,67809.0,1.12436693]
[1717299967182,0.01129852,67810.0,67809.0,1.1243548]
[1717299980024,0.01129852,67810.0,67809.0,1.43039309]
[1717299981886,0.01129852,67810.0,67809.0,1.43038396]
[1717299986480,0.01129852,67810.0,67809.0,1.06024567]
[1717299986766,0.01129852,67810.0,67809.0,1.12434567]
[1717299995489,0.01129852,67810.0,67809.0,1.43038597]
[1717299996270,0.01129852,67810.0,67809.0,1.27788597]
[1717299997507,0.01129852,67810.0,67809.0,1.3543936]
[1717299998003,0.01629852,67810.0,67809.0,1.3543936]
[1717299998543,0.01129852,67810.0,67809.0,1.3543936]
[1717299998942,0.01129852,67810.0,67809.0,1.35439571]
[1717299999728,0.01129852,67810.0,67809.0,1.27369571]
[1717300001553,0.01129852,67810.0,67809.0,1.27369572]
[1717300002923,0.01129852,67810.0,67809.0,1.39365804]
[1717300003563,0.01129852,67810.0,67809.0,1.20959572]
[1717300003806,0.01129852,67810.0,67809.0,1.39365804]
[1717300015517,0.01129852,67810.0,67809.0,1.39364477]
[1717300016832,0.01129852,67810.0,67809.0,1.39397952]
[1717300017031,0.01129852,67810.0,67809.0,0.99059764]
[1717300017231,0.01129852,67810.0,67809.0,1.39397953]
[1717300018655,0.09259852,67810.0,67809.0,1.39397953]
[1717300018860,0.25069852,67810.0,67809.0,1.39397953]
[1717300021301,0.25569852,67810.0,67809.0,1.39397832]
[1717300022347,0.25569852,67810.0,67809.0,1.27369289]
[1717300022559,0.25569852,67810.0,67809.0,0.94681832]
[1717300022774,0.25569852,67810.0,67809.0,1.39425331]
[1717300022983,0.25569852,67810.0,67809.0,0.90355449]
[1717300023403,0.25569852,67810.0,67809.0,0.99197176]
[1717300023886,0.25569852,67810.0,67809.0,0.90355449]
[1717300024316,0.25569852,67810.0,67809.0,0.90355838]
[1717300024895,0.25569852,67810.0,67809.0,0.96765838]
[1717300025298,0.25569852,67810.0,67809.0,1.05605782]
[1717300025889,0.25569852,67810.0,67809.0,0.96765838]
[1717300032395,0.25569852,67810.0,67809.0,1.05604154]
[1717300033785,0.25569852,67810.0,67809.0,0.96765838]
[1717300035783,0.25569852,67810.0,67809.0,1.05604283]
[1717300038398,0.25069852,67810.0,67809.0,1.05604283]
[1717300039363,0.25069852,67810.0,67809.0,0.56427191]
[1717300039568,0.25569852,67810.0,67809.0,1.05605575]
[1717300039762,0.26405146,67810.0,67809.0,1.05605575]
[1717300039984,0.25569852,67810.0,67809.0,1.05605575]
[1717300040563,0.25569852,67810.0,67809.0,0.89116492]
[1717300040764,0.25569852,67810.0,67809.0,1.05605571]
[1717300040970,0.26405146,67810.0,67809.0,1.05605571]
[1717300041172,0.25569852,67810.0,67809.0,1.05605571]
[1717300043078,0.25069852,67810.0,67809.0,1.05605571]
[1717300044402,0.25569852,67810.0,67809.0,1.05605571]
[1717300048281,0.25069852,67810.0,67809.0,1.05605571]
[1717300050338,0.01129852,67810.0,67809.0,1.05605571]
[1717300051845,0.01629852,67810.0,67809.0,1.05605571]
[1717300052602,0.01629852,67810.0,67809.0,1.05605557]
[1717300053947,0.01629852,67810.0,67809.0,0.97954407]
[1717300054129,0.01629852,67810.0,67809.0,1.05605557]
[1717300056570,0.01129852,67810.0,67809.0,1.05605557]
[1717300058131,0.01129852,67810.0,67809.0,1.05602112]
[1717300058132,0.01629852,67810.0,67809.0,1.05602112]
[1717300059529,0.01629852,67810.0,67809.0,0.99192112]
[1717300059734,0.01629852,67810.0,67809.0,1.05602112]
[1717300059911,0.01129852,67810.0,67809.0,1.05602112]
[1717300060415,0.01129852,67810.0,67809.0,0.96767581]
[1717300061257,0.01129852,67810.0,67809.0,0.90357581]
[1717300061618,0.01629852,67810.0,67809.0,0.96767581]
[1717300062690,0.01629852,67810.0,67809.0,0.90357581]
[1717300065210,0.01629852,67810.0,67809.0,1.01405596]
[1717300065455,0.01129852,67810.0,67809.0,1.07815596]
[1717300066478,0.01629852,67810.0,67809.0,1.07815596]
[1717300071380,0.01629852,67810.0,67809.0,0.96767624]
[1717300072345,0.01629852,67810.0,67809.0,1.07819429]
[1717300072978,0.01629852,67810.0,67809.0,1.0781942]
[1717300075248,0.01629852,67810.0,67809.0,0.96767609]
[1717300078601,0.01629852,67810.0,67809.0,1.07819654]
[1717300078827,0.01329852,67810.0,67809.0,1.00419654]
[1717300078996,0.01429852,67810.0,67809.0,0.93067609]
[1717300079197,0.01529852,67810.0,67809.0,0.96767609]
[1717300079404,0.01529852,67810.0,67809.0,0.93067609]
[1717300079610,0.01429852,67810.0,67809.0,0.89367609]
[1717300079938,0.01529852,67810.0,67809.0,0.93067609]
[1717300080821,0.01629852,67810.0,67809.0,0.96767609]
[1717300082140,0.01629852,67810.0,67809.0,0.96767606]
[1717300083480,0.01629852,67810.0,67809.0,0.89116451]
[1717300083695,0.01629852,67810.0,67809.0,0.96767606]
[1717300085581,0.01629852,67810.0,67809.0,1.07819714]
[1717300085979,0.01629852,67810.0,67809.0,0.96767606]
[1717300089287,0.01629852,67810.0,67809.0,0.56427191]
[1717300089642,0.02480664,67810.0,67809.0,0.96767607]
[1717300090001,0.01629852,67810.0,67809.0,0.96767607]
[1717300094867,0.01129852,67810.0,67809.0,0.96767607]
[1717300095063,0.01629852,67810.0,67809.0,0.96767607]
[1717300099038,0.01629852,67810.0,67809.0,0.56427191]
[1717300099237,0.01629852,67810.0,67809.0,1.07821414]
[1717300100433,0.26199852,67810.0,67809.0,1.01411414]
[1717300101215,0.26199852,67810.0,67809.0,0.90357607]
[1717300101416,0.26199852,67810.0,67809.0,1.01411414]
[1717300106282,0.26199852,67810.0,67809.0,1.01411435]
[1717300107743,0.26199852,67810.0,67809.0,0.50017191]
[1717300107945,0.26199852,67810.0,67809.0,1.01411129]
[1717300108159,0.27050664,67810.0,67809.0,1.01411129]
[1717300108329,0.26199852,67810.0,67809.0,1.01411129]
[1717300110373,0.09619852,67810.0,67809.0,1.01411129]
[1717300115707,0.01629852,67810.0,67809.0,1.01411129]
[1717300118160,0.01629852,67810.0,67809.0,0.82706545]
[1717300118360,0.01629852,67810.0,67809.0,1.0141072]
[1717300119279,0.01629852,67810.0,67809.0,1.0141062]
[1717300120141,0.01629852,67810.0,67809.0,0.93759439]
[1717300120266,0.01629852,67810.0,67809.0,1.01410615]
[1717300130000,0.01629852,67810.0,67809.0,1.01410711]
[1717300138815,0.01629852,67810.0,67809.0,1.01410701]
[1717300139643,0.01629852,67810.0,67809.0,0.93759535]
[1717300139802,0.01629852,67810.0,67809.0,1.01410701]
[1717300140205,0.01129852,67810.0,67809.0,1.01410701]
[1717300140541,0.01629852,67810.0,67809.0,1.01410701]
[1717300140848,0.01129852,67810.0,67809.0,1.01410701]
[1717300142540,0.01129852,67810.0,67809.0,1.09200701]
[1717300145219,0.01129852,67810.0,67809.0,1.24670701]
[1717300147203,0.01129852,67810.0,67809.0,1.31080701]
[1717300148321,0.01629852,67810.0,67809.0,1.31080701]
[1717300149128,0.01629852,67810.0,67809.0,1.31079371]
[1717300149997,0.01629852,67810.0,67809.0,1.31079245]
[1717300150403,0.01629852,67810.0,67809.0,1.09199245]
[1717300150649,0.01629852,67810.0,67809.0,1.15609245]
[1717300151557,0.01629852,67810.0,67809.0,1.09199245]
[1717300151761,0.01629852,67810.0,67809.0,1.15609083]
[1717300153095,0.01629852,67810.0,67809.0,1.01409083]
[1717300154110,0.09579852,67810.0,67809.0,1.01409083]
[1717300154822,0.01629852,67810.0,67809.0,1.01409083]
[1717300156683,0.09759852,67810.0,67809.0,1.01409083]
[1717300157054,0.01629852,67810.0,67809.0,1.01409083]
[1717300157686,0.01629852,67810.0,67809.0,0.93758038]
[1717300157882,0.01629852,67810.0,67809.0,1.01409188]
[1717300159037,0.01629852,67810.0,67809.0,0.93758038]
[1717300159242,0.01629852,67810.0,67809.0,1.01409187]
[1717300160786,0.01129852,67810.0,67809.0,1.01409187]
[1717300161149,0.01629852,67810.0,67809.0,1.01409187]
[1717300162460,0.01629852,67810.0,67809.0,0.90357133]
[1717300164702,0.01129852,67810.0,67809.0,1.09419187]
[1717300169182,0.01129852,67810.0,67809.0,1.15829187]
[1717300172165,0.01129852,67810.0,67809.0,1.1582911]
[1717300177954,0.01129852,67810.0,67809.0,1.15831341]
[1717300180662,0.01129852,67810.0,67809.0,1.04777171]
[1717300186056,0.01129852,67810.0,67809.0,1.12007171]
[1717300186242,0.01129852,67810.0,67809.0,1.19927171]
[1717300188213,0.01129852,67810.0,67809.0,1.59421771]
[1717300188346,0.01129852,67810.0,67809.0,1.7702324]
[1717300188970,0.00929852,67810.0,67809.0,1.7332324]
[1717300190289,0.00929852,67810.0,67809.0,1.7702324]
[1717300190868,0.00929852,67810.0,67809.0,1.7332324]
[1717300191341,0.00929852,67810.0,67809.0,1.7702324]
[1717300192113,0.00829852,67810.0,67809.0,1.7332324]
[1717300192320,0.00829852,67810.0,67809.0,1.7702324]
[1717300192517,0.00829852,67810.0,67809.0,1.69370408]
[1717300192818,0.00829852,67810.0,67809.0,1.77021092]
[1717300193789,0.00829852,67810.0,67809.0,1.47526492]
[1717300194433,0.00829852,67810.0,67809.0,1.41116492]
[1717300194650,0.00829852,67810.0,67809.0,1.47526492]
[1717300195056,0.00829852,67810.0,67809.0,1.41116492]
[1717300195449,0.00829852,67810.0,67809.0,1.47526492]
[1717300197074,0.00829852,67810.0,67809.0,1.41116492]
[1717300197272,0.00829852,67810.0,67809.0,1.47526492]
[1717300198916,0.00829852,67810.0,67809.0,1.47526508]
[1717300200607,0.00829852,67810.0,67809.0,1.41116508]
[1717300201049,0.00829852,67810.0,67809.0,1.47526508]
[1717300201260,0.00829852,67810.0,67809.0,1.47526512]
[1717300202127,0.00829852,67810.0,67809.0,1.41116512]
[1717300202332,0.00829852,67810.0,67809.0,1.47526512]
[1717300206747,0.00829852,67810.0,67809.0,1.41116512]
[1717300206896,0.00829852,67810.0,67809.0,1.25876512]
[1717300207098,0.00829852,67810.0,67809.0,1.24366512]
[1717300209746,0.00829852,67810.0,67809.0,1.17956512]
[1717300210184,0.00829852,67810.0,67809.0,1.24366512]
[1717300213313,0.01329852,67810.0,67809.0,1.24366512]
[1717300213460,0.01329852,67810.0,67809.0,1.24366518]
[1717300213865,0.00829852,67810.0,67809.0,1.24366518]
[1717300215573,0.01329852,67810.0,67809.0,1.24366518]
[1717300217318,0.01329852,67810.0,67809.0,1.26578251]
[1717300217819,0.01329852,67810.0,67809.0,1.20168251]
[1717300218028,0.01329852,67810.0,67809.0,1.26578251]
[1717300219523,0.01329852,67810.0,67809.0,0.93120951]
[1717300219736,0.24609852,67810.0,67809.0,1.20961226]
[1717300220160,0.24609852,67810.0,67809.0,1.09909218]
[1717300220369,0.24609852,67810.0,67809.0,1.09910686]
[1717300220626,0.24609852,67810.0,67809.0,1.24657986]
[1717300221265,0.24609852,67810.0,67809.0,0.69017191]
[1717300221710,0.25434724,67810.0,67809.0,1.23645007]
[1717300221948,0.24609852,67810.0,67809.0,1.23645007]
[1717300223414,0.24609852,67810.0,67809.0,1.09356939]
[1717300223616,0.08959852,67810.0,67809.0,1.23605369]
[1717300223814,0.00829852,67810.0,67809.0,1.34658237]
[1717300234225,0.01329852,67810.0,67809.0,1.34658237]
[1717300236104,0.00829852,67810.0,67809.0,1.34658237]
[1717300236268,0.01329852,67810.0,67809.0,1.34658237]
[1717300236470,0.00829852,67810.0,67809.0,1.34658237]
[1717300236671,0.01329852,67810.0,67809.0,1.34658237]
[1717300237691,0.00829852,67810.0,67809.0,1.34658237]
[1717300238372,0.01329852,67810.0,67809.0,1.34658237]
[1717300239853,0.00829852,67810.0,67809.0,1.34658237]
[1717300242436,0.00829852,67810.0,67809.0,1.34859762]
[1717300243483,0.00829852,67810.0,67809.0,1.34859785]
[1717300245411,0.00829852,67810.0,67809.0,1.34859859]
[1717300246198,0.00829852,67810.0,67809.0,1.23801508]
[1717300246699,0.01329852,67810.0,67809.0,1.23801508]
[1717300253652,0.01329852,67810.0,67809.0,1.30211508]
[1717300254411,0.00829852,67810.0,67809.0,1.30211508]
[1717300255344,0.01329852,67810.0,67809.0,1.30211508]
[1717300261585,0.01329852,67810.0,67809.0,1.30294433]
[1717300262049,0.01329852,67810.0,67809.0,1.23884433]
[1717300262258,0.01329852,67810.0,67809.0,1.30294433]
[1717300266726,0.01329852,67810.0,67809.0,1.23884433]
[1717300266946,0.01329852,67810.0,67809.0,1.30294433]
[1717300268740,0.01329852,67810.0,67809.0,1.30294429]
[1717300271786,0.00829852,67810.0,67809.0,1.38284429]
[1717300276215,0.00829852,67810.0,67809.0,1.38234652]
[1717300277429,0.00829852,67810.0,67809.0,1.3058379]
[1717300277629,0.00829852,67810.0,67809.0,1.38234567]
[1717300281928,0.00829852,67810.0,67809.0,1.31824567]
[1717300282129,0.00829852,67810.0,67809.0,1.38234567]
[1717300285011,0.01329852,67810.0,67809.0,1.38234567]
[1717300285675,0.01329852,67810.0,67809.0,1.30244567]
[1717300287423,0.00829852,67810.0,67809.0,1.30244567]
[1717300289083,0.00829852,67810.0,67809.0,1.15765754]
[1717300289313,0.00829852,67810.0,67809.0,1.30226358]
[1717300290949,0.00829852,67810.0,67809.0,1.30243873]
[1717300293234,0.00829852,67810.0,67809.0,1.23833873]
[1717300294369,0.00829852,67810.0,67809.0,1.16183111]
[1717300294571,0.00829852,67810.0,67809.0,1.23833898]
[1717300298170,0.00829852,67810.0,67809.0,1.23827847]
[1717300299939,0.00829852,67810.0,67809.0,1.30238409]
[1717300306143,0.00829852,67810.0,67809.0,1.23828409]
[1717300306347,0.00829852,67810.0,67809.0,1.30238409]
[1717300307499,0.01329852,67810.0,67809.0,1.30238409]
[1717300311871,0.01329852,67810.0,67809.0,1.22587615]
[1717300312116,0.01329852,67810.0,67809.0,1.30238409]
[1717300314246,0.01329852,67810.0,67809.0,1.23828409]
[1717300316088,0.01329852,67810.0,67809.0,1.2382841]
[1717300316715,0.01329852,67810.0,67809.0,1.3023841]
[1717300318930,0.01329852,67810.0,67809.0,1.2382841]
[1717300319225,0.08949852,67810.0,67809.0,1.3023841]
[1717300321571,0.08949852,67810.0,67809.0,0.89899893]
[1717300321771,0.08949852,67810.0,67809.0,1.30238686]
[1717300332104,0.08949852,67810.0,67809.0,1.23828686]
[1717300332264,0.08949852,67810.0,67809.0,1.30238686]
[1717300335559,0.01329852,67810.0,67809.0,1.30238686]
[1717300345784,0.01329852,67810.0,67809.0,1.30499651]
[1717300346295,0.00829852,67810.0,67809.0,1.30499651]
[1717300347526,0.00829852,67810.0,67809.0,1.30501124]
[1717300350720,0.00829852,67810.0,67809.0,1.38141124]
[1717300351137,0.00829852,67810.0,67809.0,1.37911019]
[1717300352431,0.00829852,67810.0,67809.0,1.31501019]
[1717300352652,0.00829852,67810.0,67809.0,1.48975493]
[1717300352865,0.00829852,67810.0,67809.0,1.42565493]
[1717300353101,0.00829852,67810.0,67809.0,1.37911019]
[1717300353340,0.00829852,67810.0,67809.0,1.37911067]
[1717300353754,0.00829852,67810.0,67809.0,1.15755145]
[1717300353960,0.00829852,67810.0,67809.0,1.38031205]
[1717300356666,0.01329852,67810.0,67809.0,1.31621205]
[1717300356919,0.01329852,67810.0,67809.0,1.38031205]
[1717300357071,0.01329852,67810.0,67809.0,1.30391205]
[1717300361239,0.01329852,67810.0,67809.0,1.30384131]
[1717300361987,0.01329852,67810.0,67809.0,1.15766165]
[1717300362191,0.01329852,67810.0,67809.0,1.30383986]
[1717300362550,0.25799852,67810.0,67809.0,1.23973986]
[1717300362995,0.25799852,67810.0,67809.0,1.16323105]
[1717300363455,0.25799852,67810.0,67809.0,1.32824892]
[1717300371389,0.25799852,67810.0,67809.0,1.18205699]
[1717300371669,0.25799852,67810.0,67809.0,1.32911774]
[1717300373236,0.25799852,67810.0,67809.0,1.24063567]
[1717300376478,0.25799852,67810.0,67809.0,1.30473567]
[1717300376905,0.25799852,67810.0,67809.0,1.39321774]
[1717300382474,0.09529852,67810.0,67809.0,1.39321774]
[1717300384343,0.09529852,67810.0,67809.0,1.39319316]
[1717300384492,0.09529852,67810.0,67809.0,1.32909316]
[1717300384698,0.09529852,67810.0,67809.0,0.87365254]
[1717300384699,0.01329852,67810.0,67809.0,0.87365254]
[1717300384903,0.26099852,67810.0,67809.0,0.32318891]
[1717300385107,0.26923866,67810.0,67809.0,0.177411]
[1717300385310,0.4990216,67810.0,67809.0,0.177411]
[1717300386254,0.4990216,67810.0,67809.0,0.140411]
[1717300386801,0.4990216,67810.0,67809.0,0.177411]
[1717300387269,0.4990216,67810.0,67809.0,0.140411]
[1717300388042,0.4990216,67810.0,67809.0,0.177411]
[1717300390730,0.5990216,67810.0,67809.0,0.177411]
[1717300392248,0.4990216,67810.0,67809.0,0.177411]
[1717300397185,0.41670866,67810.0,67809.0,0.177411]
[1717300397500,0.5429651,67810.0,67809.0,0.177411]
[1717300398848,0.41670866,67810.0,67809.0,0.177411]
[1717300399051,0.54295829,67810.0,67809.0,0.177411]
[1717300408584,0.41670866,67810.0,67809.0,0.177411]
[1717300408797,0.54391554,67810.0,67809.0,0.177411]
[1717300420803,0.41670866,67810.0,67809.0,0.177411]
[1717300427817,0.41670866,67810.0,67809.0,0.103411]
[1717300428220,0.41670866,67810.0,67809.0,0.140411]
[1717300428629,0.41670866,67810.0,67809.0,0.103411]
[1717300429691,0.41770866,67810.0,67809.0,0.140411]
[1717300430182,0.41870866,67810.0,67809.0,0.177411]
[1717300432031,0.54633054,67810.0,67809.0,0.177411]
[1717300435848,0.41870866,67810.0,67809.0,0.177411]
[1717300436087,0.53203375,67810.0,67809.0,0.177411]
[1717300440965,0.53202413,67810.0,67809.0,0.177411]
[1717300444704,0.28432413,67810.0,67809.0,0.177411]
[1717300445315,0.29006353,67810.0,67809.0,0.177411]
[1717300447164,0.28946172,67810.0,67809.0,0.177411]
[1717300449630,0.28944696,67810.0,67809.0,0.177411]
[1717300453099,0.29501264,67810.0,67809.0,0.177411]
[1717300455851,0.14754264,67810.0,67809.0,0.55708891]
[1717300456896,0.14754253,67810.0,67809.0,0.55708891]
[1717300465730,0.15144211,67810.0,67809.0,0.55708891]
[1717300472755,0.15006496,67810.0,67809.0,0.55708891]
[1717300478794,0.15006496,67810.0,67809.0,0.40568891]
[1717300479818,0.15015164,67810.0,67809.0,0.32318891]
[1717300482172,0.15015161,67810.0,67809.0,0.32318891]
[1717300490194,0.14911535,67810.0,67809.0,0.32318891]
[1717300491810,0.14911534,67810.0,67809.0,0.32318891]
[1717300508752,0.14774903,67810.0,67809.0,0.32318891]
[1717300544424,0.15014712,67810.0,67809.0,0.32318891]
[1717300545234,0.02927789,67810.0,67809.0,0.32318891]
[1717300545391,0.15016387,67810.0,67809.0,0.32318891]
[1717300545838,0.14442464,67810.0,67809.0,0.32318891]
[1717300546032,0.15016387,67810.0,67809.0,0.32318891]
[1717300554250,0.15045228,67810.0,67809.0,0.32318891]
[1717300555790,0.02353866,67810.0,67809.0,0.32318891]
[1717300556001,0.15062613,67810.0,67809.0,0.32318891]
[1717300564288,0.15588635,67810.0,67809.0,0.32318891]
[1717300565389,0.15586053,67810.0,67809.0,0.32318891]
[1717300568142,0.02925207,67810.0,67809.0,0.32318891]
[1717300568422,0.15592751,67810.0,67809.0,0.32318891]
[1717300568652,0.02925207,67810.0,67809.0,0.32318891]
[1717300568786,0.15592751,67810.0,67809.0,0.32318891]
[1717300570925,0.02925207,67810.0,67809.0,0.32318891]
[1717300571127,0.15603472,67810.0,67809.0,0.32318891]
[1717300590763,0.15103472,67810.0,67809.0,0.32318891]
[1717300591014,0.15603472,67810.0,67809.0,0.32318891]
[1717300592397,0.15511088,67810.0,67809.0,0.32318891]
[1717300597593,0.15548846,67810.0,67809.0,0.32318891]
[1717300608258,0.02925207,67810.0,67809.0,0.32318891]